fUSD/lending_fUSD_20240407
["ID","MTS","AMOUNT","RATE_DAILY","PERIOD"]
[321797032,1712520642834,-703879.10238011,0.00021,2]
[321797033,1712520642846,-34451.88900001,0.00021,2]
[321797034,1712520642939,-152.61844782,0.000209,2]
[321797035,1712520642948,-1860.53425933,0.00021,2]
[321797036,1712520642959,-3001.52961274,0.00021,2]
[321797037,1712520642970,-19074.17911912,0.00021,2]
[321797038,1712520643000,-1821.98815235,0.00021,2]
[321797039,1712520643012,-6060.41462006,0.00021,2]
[321797040,1712520643024,-1752.89215584,0.00021,2]
[321797041,1712520643035,-5343.98635872,0.00021,2]
[321797043,1712520643051,-5917.76994183,0.00021,2]
[321797045,1712520643067,-1214.37944909,0.00021,2]
[321797075,1712520647137,-325.76590549,0.0002,2]
[321797076,1712520647147,-9150.18431384,0.00020878,2]
[321797077,1712520647156,-858.15550838,0.00020899,2]
[321797078,1712520647165,-152.61844782,0.000209,2]
[321797079,1712520647175,-500.0,0.00020998,2]
[321797080,1712520647185,-218.10817239,0.00020999,2]
[321797081,1712520647194,-78566.62925207,0.00021,2]
[321797082,1712520647309,-205.79634065,0.00020998,2]
[321797083,1712520647318,-8152.30340937,0.00021,2]
[321797084,1712520647341,-307.48071798,0.00021,2]
[321797086,1712520662845,150.5,0.0002099,15]
[321797087,1712520663934,151.74,0.0002099,15]
[321797089,1712520769452,455.11,0.00017962,2]
[321797090,1712520824633,155.0,0.00017962,2]
[321797091,1712520838630,199.95276803,0.00017962,2]
[321797096,1712521172664,208.4,0.00019481,10]
[321797097,1712521252655,432.35,0.00017449,2]
[321797099,1712521633173,-342.43500003,0.00018798,2]
[321797100,1712521633194,-300.0,0.00018799,2]
[321797101,1712521633215,-166.69515823,0.000189,2]
[321797102,1712521633237,-1599.95551426,0.00019,3]
[321797103,1712521644089,-150.04448574,0.00019,3]
[321797104,1712521644109,-233.30648504,0.00019164,2]
[321797105,1712521644130,-150.0,0.00019165,2]
[321797106,1712521644150,-150.0,0.00019165,2]
[321797107,1712521644170,-161.0,0.00019165,2]
[321797108,1712521644191,-440.69515882,0.00019166,2]
[321797109,1712521717533,10380.0,0.00019164,5]
[321797110,1712521730706,410.73,0.00017556,2]
[321797126,1712521831882,-719.69108344,0.00019166,2]
[321797127,1712521831895,-2432.65375774,0.00019166,2]
[321797128,1712521831905,-540.11583586,0.00019166,2]
[321797129,1712521831940,-176.75416414,0.00019166,2]
[321797130,1712521831950,-548.99,0.00019191,2]
[321797131,1712521831960,-1483.24,0.00019207,2]
[321797132,1712521831970,-150.0,0.00019217,2]
[321797146,1712521832191,-1000.0,0.00019228,2]
[321797149,1712521832218,-6728.15,0.00019239,2]
[321797151,1712521832228,-598.16,0.00019244,2]
[321797153,1712521832237,-368.0,0.00019253,2]
[321797155,1712521832247,-679.98,0.00019264,2]
[321797157,1712521832256,-500.0,0.00019288,2]
[321797158,1712521832267,-169.29,0.00019307,2]
[321797160,1712521832277,-5189.41,0.00019307,2]
[321797162,1712521832286,-4561.66,0.00019307,2]
[321797164,1712521832296,-150.99,0.00019307,2]
[321797166,1712521832305,-362.65,0.00019329,2]
[321797167,1712521832314,-23499.77,0.00019385,2]
[321797169,1712521832324,-200.0,0.00019415,2]
[321797171,1712521832334,-904.0,0.00019415,2]
[321797173,1712521832343,-1984.12,0.0001944,2]
[321797175,1712521832352,-160.0,0.00019454,2]
[321797177,1712521832362,-258.15,0.00019503,2]
[321797178,1712521832372,-169.29,0.00019643,2]
[321797180,1712521832381,-2118.71,0.00019659,2]
[321797182,1712521832392,-150.99,0.00019674,2]
[321797184,1712521832403,-499.99,0.00019687,2]
[321797186,1712521832413,-175.61,0.00019697,2]
[321797188,1712521832422,-501.02113051,0.00019738,2]
[321797190,1712521832432,-410.73,0.0001982,2]
[321797192,1712521832442,-166.69515823,0.000199,2]
[321797193,1712521832452,-1263.68856316,0.00019948,2]
[321797195,1712521832463,-169.29,0.00019978,2]
[321797197,1712521832472,-725.91,0.00020055,2]
[321797199,1712521832482,-169.29,0.00020314,2]
[321797201,1712521832493,-167.01,0.00020355,2]
[321797203,1712521832502,-150.0,0.000205,2]
[321797205,1712521832512,-734.0,0.0002052,2]
[321797207,1712521832522,-311.15614,0.00020548,2]
[321797208,1712521832533,-540.0,0.00020548,2]
[321797210,1712521832544,-464.97532289,0.00020603,2]
[321797212,1712521832554,-2170.08593446,0.00020604,2]
[321797214,1712521832564,-464.97532289,0.00020636,2]
[321797216,1712521832575,-2170.0859344,0.00020637,2]
[321797218,1712521832585,-464.97532289,0.00020669,2]
[321797220,1712521832594,-2170.0859344,0.0002067,2]
[321797221,1712521832604,-1000.0,0.00020688,2]
[321797223,1712521832614,-273.6707,0.00020699,2]
[321797225,1712521832625,-3912.1728,0.00020699,2]
[321797227,1712521832635,-88723.5398,0.00020699,2]
[321797229,1712521832646,-464.97532289,0.00020702,2]
[321797231,1712521832655,-2170.0859344,0.00020703,2]
[321797232,1712521832666,-464.97532289,0.00020735,2]
[321797234,1712521832677,-2170.0859344,0.00020736,2]
[321797236,1712521832687,-464.97532289,0.00020768,2]
[321797238,1712521832696,-2170.0859344,0.00020768,2]
[321797240,1712521832706,-297.29902466,0.00020787,2]
[321797242,1712521832716,-21533.1394149,0.00020788,2]
[321797244,1712521832726,-178.13549667,0.0002079,2]
[321797245,1712521832736,-2500.0,0.000208,2]
[321797246,1712521832746,-464.97532289,0.00020801,2]
[321797247,1712521832757,-2170.0859344,0.00020801,2]
[321797248,1712521832768,-200.0,0.00020832,2]
[321797249,1712521832777,-800.0,0.00020832,2]
[321797250,1712521832788,-500.0,0.00020832,2]
[321797251,1712521832798,-464.97532289,0.00020834,2]
[321797252,1712521832809,-2170.0859344,0.00020834,2]
[321797253,1712521832819,-464.97532289,0.00020867,2]
[321797254,1712521832830,-2170.0859344,0.00020867,2]
[321797256,1712521832840,-1000.0,0.0002088,2]
[321797257,1712521832850,-627.59736349,0.00020899,2]
[321797259,1712521832860,-627.5973635,0.00020899,2]
[321797261,1712521832872,-172.6210039,0.00020899,2]
[321797263,1712521832882,-166.69515823,0.00020899,2]
[321797265,1712521832891,-521.94902567,0.00020899,2]
[321797268,1712521832903,-150.21982458,0.00020899,2]
[321797269,1712521832913,-1675.35295894,0.00020899,2]
[321797271,1712521832923,-406.99923432,0.00020899,3]
[321797273,1712521832933,-521.94902561,0.00020899,2]
[321797275,1712521832943,-521.94902561,0.00020899,2]
[321797277,1712521832953,-406.99923429,0.00020899,3]
[321797280,1712521832964,-521.94902561,0.00020899,2]
[321797282,1712521832974,-521.94902561,0.00020899,2]
[321797283,1712521832984,-521.94902561,0.00020899,2]
[321797285,1712521832994,-150.21982456,0.000209,2]
[321797288,1712521833005,-1675.35295894,0.000209,2]
[321797290,1712521833018,-521.94902561,0.000209,2]
[321797292,1712521833029,-521.94902561,0.000209,2]
[321797294,1712521833038,-521.94902561,0.000209,2]
[321797296,1712521833049,-521.94902561,0.000209,2]
[321797298,1712521833059,-521.94902561,0.000209,2]
[321797300,1712521833069,-1239.97,0.000209,2]
[321797302,1712521833078,-905.99,0.000209,2]
[321797304,1712521833088,-905.99,0.000209,2]
[321797306,1712521833100,-1000.0,0.000209,2]
[321797308,1712521833111,-521.94902561,0.000209,2]
[321797310,1712521833122,-150.21982456,0.000209,2]
[321797312,1712521833132,-2170.0859344,0.000209,2]
[321797314,1712521833141,-1675.35295894,0.000209,2]
[321797316,1712521833151,-464.97532289,0.000209,2]
[321797318,1712521833161,-297.55737564,0.0002098,2]
[321797320,1712521833171,-3620.0,0.00020986,2]
[321797322,1712521833181,-14979.0,0.00020986,2]
[321797324,1712521833192,-342.16157541,0.00020996,2]
[321797326,1712521833201,-216.92872265,0.00020996,2]
[321797328,1712521833210,-362.27924693,0.00020997,2]
[321797330,1712521833219,-155.39379797,0.00020997,2]
[321797332,1712521833230,-703.66801743,0.00020997,2]
[321797334,1712521833240,-169.12911613,0.00020997,2]
[321797336,1712521833250,-156.34656449,0.00020997,2]
[321797338,1712521833260,-155.0,0.00020997,2]
[321797339,1712521833269,-1034.92865455,0.00020997,2]
[321797340,1712521833278,-155.624877,0.00020997,2]
[321797341,1712521833287,-155.0,0.00020997,2]
[321797342,1712521833296,-1758.87864224,0.00020997,2]
[321797343,1712521833309,-594.92549143,0.00020997,2]
[321797344,1712521833318,-155.0,0.00020997,2]
[321797345,1712521833328,-160.91122999,0.00020997,2]
[321797346,1712521833338,-175.43329082,0.00020997,2]
[321797347,1712521833347,-198.43466289,0.00020997,2]
[321797348,1712521833356,-6299.96928165,0.00020997,2]
[321797349,1712521833367,-264.23544895,0.00020997,2]
[321797350,1712521833376,-616.22742246,0.00020997,2]
[321797351,1712521833385,-503.87779719,0.00020997,2]
[321797352,1712521833394,-2780.27760656,0.00020997,2]
[321797353,1712521833404,-155.0,0.00020998,2]
[321797354,1712521833413,-201.70970814,0.00020998,2]
[321797355,1712521833422,-500.0,0.00020998,2]
[321797356,1712521833431,-1210.30084464,0.00020998,2]
[321797357,1712521833440,-37240.30855395,0.00020998,2]
[321797482,1712521838636,-406.99923429,0.000209,3]
[321797484,1712521838644,-430.93861397,0.00020996,2]
[321797486,1712521838654,-5853.94608896,0.00020998,2]
[321797489,1712521838674,-646761.90184924,0.00020998,2]
[321797491,1712521838683,-335291.39108689,0.00020999,2]
[321797493,1712521838693,-324.64502018,0.00020999,2]
[321797495,1712521838702,-266.62366915,0.00020999,2]
[321797497,1712521838712,-1967.9938478,0.00020999,2]
[321797499,1712521838721,-23283.26082031,0.00020999,2]
[321797501,1712521838730,-1044.54849104,0.00020999,2]
[321797503,1712521838739,-522.426809,0.00020999,2]
[321797505,1712521838748,-155.0,0.00020999,2]
[321797507,1712521838758,-155.0,0.00020999,2]
[321797509,1712521838767,-29850.56533141,0.00020999,2]
[321797511,1712521838776,-1672645.88138713,0.00020999,2]
[321797513,1712521838785,-1149.8815421,0.00020999,2]
[321797515,1712521838794,-1016.1258,0.00020999,2]
[321797517,1712521838804,-9983278.59195779,0.00021,2]
[321797519,1712521838813,-2875.86637624,0.00021,2]
[321797521,1712521838823,-2055.16,0.00021,2]
[321797522,1712521838832,-500.0,0.00021,2]
[321797523,1712521838842,-500.0,0.00021,2]
[321797524,1712521838851,-500.0,0.00021,2]
[321797526,1712521838861,-200.0,0.00021,2]
[321797528,1712521838872,-500.0,0.00021,2]
[321797530,1712521838881,-500.0,0.00021,2]
[321797532,1712521838890,-500.0,0.00021,2]
[321797534,1712521838899,-200.0,0.00021,2]
[321797536,1712521838910,-500.0,0.00021,2]
[321797537,1712521838919,-500.0,0.00021,2]
[321797539,1712521838929,-200.0,0.00021,2]
[321797541,1712521838939,-500.0,0.00021,2]
[321797543,1712521838948,-3146684.07297722,0.00021,2]
[321797546,1712521838961,-11136055.73806323,0.00021,2]
[321797548,1712521838970,-500.0,0.00021,2]
[321797550,1712521838979,-500.0,0.00021,2]
[321797552,1712521838989,-200.0,0.00021,2]
[321797554,1712521838998,-500.0,0.00021,2]
[321797556,1712521839007,-500.0,0.00021,2]
[321797557,1712521839018,-500.0,0.00021,2]
[321797559,1712521839027,-500.0,0.00021,2]
[321797560,1712521839037,-500.0,0.00021,2]
[321797561,1712521839046,-200.0,0.00021,2]
[321797562,1712521839055,-500.0,0.00021,2]
[321797563,1712521839065,-500.0,0.00021,2]
[321797564,1712521839074,-500.0,0.00021,2]
[321797565,1712521839084,-200.0,0.00021,2]
[321797566,1712521839095,-500.0,0.00021,2]
[321797567,1712521839105,-500.0,0.00021,2]
[321797568,1712521839114,-500.0,0.00021,2]
[321797569,1712521839124,-200.0,0.00021,2]
[321797570,1712521839134,-500.0,0.00021,2]
[321797571,1712521839143,-554.0,0.00021,2]
[321797572,1712521839152,-200.0,0.00021,2]
[321797573,1712521839162,-500.0,0.00021,2]
[321797574,1712521839171,-200.0,0.00021,2]
[321797575,1712521839182,-500.0,0.00021,2]
[321797576,1712521839191,-500.0,0.00021,2]
[321797577,1712521839201,-200.0,0.00021,2]
[321797578,1712521839211,-500.0,0.00021,2]
[321797579,1712521839220,-200.0,0.00021,2]
[321797580,1712521839230,-753.0,0.00021,2]
[321797581,1712521839239,-200.0,0.00021,2]
[321797582,1712521839248,-200.0,0.00021,2]
[321797583,1712521839258,-1717.61,0.00021,2]
[321797584,1712521839267,-1136.00445021,0.00021,2]
[321797585,1712521839276,-317.49252544,0.00021,2]
[321797586,1712521839286,-863.11991372,0.00021,2]
[321797587,1712521839297,-1800.0,0.00021,3]
[321797588,1712521839307,-1005.68,0.00021,2]
[321797589,1712521839317,-369.0,0.00021,2]
[321797590,1712521839326,-770.0,0.00021,2]
[321797591,1712521839335,-500.0,0.00021,2]
[321797592,1712521839345,-500.0,0.00021,2]
[321797593,1712521839355,-500.0,0.00021,2]
[321797594,1712521839364,-500.0,0.00021,2]
[321797595,1712521839375,-500.0,0.00021,2]
[321797596,1712521839385,-500.0,0.00021,2]
[321797597,1712521839395,-2000.0,0.00021,2]
[321797598,1712521839406,-200.0,0.00021,2]
[321797599,1712521839415,-150.0,0.00021,2]
[321797600,1712521839425,-394.0,0.00021,2]
[321797602,1712521839443,-2000.0,0.00021,2]
[321797603,1712521839456,-200.0,0.00021,2]
[321797604,1712521839467,-663.28947286,0.00021,2]
[321797605,1712521839478,-200.0,0.00021,2]
[321797606,1712521839488,-1779.43235,0.00021,2]
[321797607,1712521839497,-150.0,0.00021,2]
[321797608,1712521839507,-2000.0,0.00021,2]
[321797609,1712521839517,-200.0,0.00021,2]
[321797610,1712521839526,-3698.861,0.00021,2]
[321797611,1712521839535,-91652.2916798,0.00021002,2]
[321797612,1712521839544,-5801.5299459,0.00021016,2]
[321797613,1712521839553,-12622.8170304,0.00021016,2]
[321797614,1712521839563,-321.0,0.000212,2]
[321797615,1712521839572,-2000.0,0.0002121,2]
[321797616,1712521839582,-200.0,0.0002121,2]
[321797617,1712521839593,-2000.0,0.0002121,2]
[321797618,1712521839606,-200.0,0.0002121,2]
[321797619,1712521839615,-200.0,0.0002121,2]
[321797621,1712521839626,-2000.0,0.0002121,2]
[321797622,1712521839635,-200.0,0.0002121,2]
[321797623,1712521839645,-2923.0,0.000213,2]
[321797624,1712521839654,-1165.15791884,0.00021357,2]
[321797625,1712521839664,-311.15614,0.0002137,2]
[321797626,1712521839674,-164.9,0.00021399,2]
[321797627,1712521839683,-2000.0,0.00021422,2]
[321797628,1712521839692,-200.0,0.00021422,2]
[321797629,1712521839702,-2000.0,0.00021422,2]
[321797630,1712521839711,-200.0,0.00021422,2]
[321797631,1712521839720,-200.0,0.00021422,2]
[321797632,1712521839730,-2000.0,0.00021422,2]
[321797633,1712521839740,-200.0,0.00021422,2]
[321797634,1712521839749,-150.0,0.000215,2]
[321797635,1712521839759,-734.0,0.00021547,2]
[321797636,1712521839769,-540.0,0.00021575,2]
[321797637,1712521839779,-2000.0,0.00021636,2]
[321797638,1712521839788,-200.0,0.00021636,2]
[321797639,1712521839798,-2000.0,0.00021636,2]
[321797640,1712521839807,-200.0,0.00021636,2]
[321797641,1712521839817,-2000.0,0.00021636,2]
[321797642,1712521839827,-200.0,0.00021636,2]
[321797643,1712521839837,-108174.02537449,0.000218,2]
[321797644,1712521839846,-904.0,0.00021842,2]
[321797645,1712521839856,-2000.0,0.00021853,2]
[321797646,1712521839866,-200.0,0.00021853,2]
[321797647,1712521839876,-200.0,0.00021853,2]
[321797648,1712521839886,-207.88455727,0.000219,2]
[321797649,1712521839895,-790.59438754,0.000219,2]
[321797650,1712521839905,-1404.80102661,0.000219,2]
[321797651,1712521839915,-1404.80102661,0.000219,2]
[321797652,1712521839924,-1404.80102661,0.000219,2]
[321797653,1712521839934,-1404.80102661,0.000219,2]
[321797654,1712521839943,-1404.80102661,0.000219,2]
[321797655,1712521839953,-1404.80102661,0.000219,2]
[321797656,1712521839962,-1404.80102661,0.000219,2]
[321797657,1712521839971,-1404.80102661,0.000219,2]
[321797658,1712521839981,-1404.80102661,0.000219,2]
[321797659,1712521839992,-1404.80102661,0.000219,2]
[321797660,1712521840001,-1404.80102661,0.000219,2]
[321797661,1712521840011,-1404.80102661,0.000219,2]
[321797662,1712521840024,-1404.80102661,0.000219,2]
[321797663,1712521840033,-1404.80102661,0.000219,2]
[321797664,1712521840043,-1404.80102661,0.000219,2]
[321797665,1712521840052,-1404.80102661,0.000219,2]
[321797666,1712521840062,-1404.80102661,0.000219,2]
[321797667,1712521840072,-1404.80102661,0.000219,2]
[321797668,1712521840081,-1404.80102661,0.000219,2]
[321797669,1712521840091,-1404.80102661,0.000219,2]
[321797670,1712521840357,-1404.80102661,0.000219,2]
[321797671,1712521840367,-1404.80102661,0.000219,2]
[321797672,1712521840377,-1404.80102661,0.000219,2]
[321797673,1712521840386,-1404.80102661,0.000219,2]
[321797674,1712521840396,-1404.80102661,0.000219,2]
[321797675,1712521840405,-1404.80102661,0.000219,2]
[321797676,1712521840414,-1404.80102661,0.000219,2]
[321797677,1712521840423,-1404.80102661,0.000219,2]
[321797678,1712521840433,-1404.80102661,0.000219,2]
[321797679,1712521840443,-1404.80102661,0.000219,2]
[321797680,1712521840453,-250.0,0.00021918,2]
[321797681,1712521840463,-1500.0,0.00021918,2]
[321797682,1712521840472,-500.0,0.00021918,7]
[321797683,1712521840481,-150.0,0.00021918,2]
[321797684,1712521840491,-500.0,0.00021999,2]
[321797685,1712521840501,-951.85392236,0.00022,2]
[321797686,1712521840510,-783.28322174,0.00022,2]
[321797687,1712521840519,-640.50173907,0.00022,2]
[321797688,1712521840530,-7716.7803221,0.00022,2]
[321797689,1712521840539,-272.97382694,0.00022,2]
[321797690,1712521840549,-238.56205194,0.00022,2]
[321797691,1712521840558,-1053.7260208,0.00022,2]
[321797692,1712521840567,-77335.8383752,0.00022,2]
[321797693,1712521840578,-155.81747597,0.00022,2]
[321797694,1712521840587,-282.01193994,0.00022,2]
[321797695,1712521840597,-150.0,0.00022,2]
[321797696,1712521840606,-170.0,0.00022,2]
[321797697,1712521840615,-410.73,0.00022084,2]
[321797698,1712521840626,-150.0,0.00022121,2]
[321797699,1712521840635,-1944.0,0.00022132,2]
[321797700,1712521840645,-804.0,0.00022132,2]
[321797701,1712521840654,-435.0,0.00022132,2]
[321797702,1712521840664,-396.0,0.00022132,2]
[321797703,1712521840673,-163.028,0.00022132,2]
[321797704,1712521840683,-1130.0,0.00022132,2]
[321797705,1712521840692,-150.0,0.00022132,2]
[321797706,1712521840702,-559.424,0.00022132,2]
[321797707,1712521840712,-214.0,0.00022132,2]
[321797708,1712521840721,-487.544,0.00022132,2]
[321797709,1712521840730,-4792.0,0.00022132,2]
[321797710,1712521840739,-5705.0,0.00022132,2]
[321797711,1712521840748,-1312.0,0.00022132,2]
[321797712,1712521840757,-37530.0,0.00022132,2]
[321797713,1712521840766,-460.0,0.00022132,2]
[321797714,1712521840775,-965.0,0.00022132,2]
[321797715,1712521840784,-2431.0,0.00022132,2]
[321797716,1712521840794,-1387.0,0.00022132,2]
[321797717,1712521840803,-2460.0,0.00022132,2]
[321797718,1712521840813,-1984.12,0.0002218,2]
[321797719,1712521840822,-311.15614,0.00022192,2]
[321797720,1712521840832,-833.9,0.000222,2]
[321797721,1712521840841,-1038.18,0.000222,2]
[321797722,1712521840850,-300.0,0.000222,2]
[321797723,1712521840859,-696.8,0.000222,2]
[321797724,1712521840869,-25667.9502715,0.000225,2]
[321797725,1712521840878,-150.0,0.000225,2]
[321797726,1712521840887,-734.0,0.00022575,2]
[321797727,1712521840897,-2055.16,0.000226,2]
[321797728,1712521840906,-1717.61,0.000226,2]
[321797729,1712521840915,-541.0,0.00022603,2]
[321797730,1712521840924,-161.0,0.0002285,2]
[321797731,1712521840934,-150.0,0.00022899,10]
[321797732,1712521840943,-247823.40635672,0.000229,2]
[321797733,1712521840952,-303503.64292633,0.0002299,3]
[321797734,1712521840961,-16642.62000459,0.0002299,3]
[321797735,1712521840970,-306.94010752,0.00023,2]
[321797736,1712521840980,-17351.20482302,0.00023,3]
[321797737,1712521840989,-1171.87997048,0.00023,2]
[321797738,1712521840999,-155.0,0.00023,2]
[321797739,1712521841008,-14452.0,0.00023,2]
[321797740,1712521841023,-26316.70977289,0.00023,2]
[321797741,1712521841032,-1850.0,0.00023,3]
[321797742,1712521841042,-150.0,0.00023,2]
[321797743,1712521841051,-6535.76243453,0.0002301,2]
[321797744,1712521841061,-311.15614,0.00023014,2]
[321797745,1712521841072,-417.53,0.00023022,2]
[321797746,1712521841082,-198.29553207,0.00023049,2]
[321797747,1712521841093,-162.15640584,0.00023058,2]
[321797748,1712521841103,-335.63864821,0.00023085,2]
[321797749,1712521841112,-153.58020546,0.00023087,2]
[321797750,1712521841122,-335.63864821,0.00023102,2]
[321797751,1712521841131,-150.81098517,0.00023111,2]
[321797752,1712521841141,-45848.46613047,0.00023119,2]
[321797753,1712521841150,-162.15640584,0.00023243,2]
[321797754,1712521841159,-157.02808846,0.00023253,2]
[321797755,1712521841168,-202.54142992,0.00023262,2]
[321797756,1712521841178,-1000.0,0.00023288,2]
[321797757,1712521841187,-1000.0,0.00023288,2]
[321797758,1712521841196,-1000.0,0.00023288,2]
[321797759,1712521841206,-1000.0,0.00023288,2]
[321797760,1712521841215,-1000.0,0.00023288,2]
[321797761,1712521841224,-1000.0,0.00023288,2]
[321797762,1712521841234,-1000.0,0.00023288,2]
[321797763,1712521841243,-1000.0,0.00023288,2]
[321797764,1712521841253,-555.0,0.00023288,2]
[321797765,1712521841262,-157.02808846,0.00023294,2]
[321797766,1712521841271,-198.29553207,0.00023297,2]
[321797767,1712521841281,-155.01816655,0.00023323,2]
[321797768,1712521841290,-162.19355873,0.0002336,2]
[321797769,1712521841300,-458.01647253,0.0002337,2]
[321797770,1712521841309,-150.0,0.000235,2]
[321797771,1712521841318,-158.00404978,0.00023514,2]
[321797772,1712521841328,-151.75337267,0.00023548,2]
[321797773,1712521841337,-150.81098517,0.00023569,2]
[321797774,1712521841346,-176.41979809,0.00023592,2]
[321797775,1712521841355,-734.0,0.00023602,2]
[321797776,1712521841364,-150.81098517,0.00023624,2]
[321797777,1712521841374,-458.01647253,0.00023629,2]
[321797778,1712521841383,-170.21,0.00023696,2]
[321797779,1712521841392,-350.67,0.00023698,2]
[321797780,1712521841401,-335.63864821,0.00023701,2]
[321797781,1712521841410,-162.19355873,0.00023721,2]
[321797782,1712521841420,-311.15614,0.00023836,2]
[321797783,1712521841429,-297.35302783,0.00023845,2]
[321797784,1712521841438,-458.01647253,0.00023926,2]
[321797785,1712521841447,-162.15640584,0.00023941,2]
[321797786,1712521841457,-161.0,0.0002399,2]
[321797787,1712521841466,-517.19839659,0.00024,2]
[321797788,1712521841475,-942.31001809,0.00024,2]
[321797789,1712521841483,-1977.49843648,0.00024,2]
[321797790,1712521841493,-309.89418196,0.00024,15]
[321797791,1712521841502,-11097.20615615,0.00024,2]
[321797792,1712521841511,-150.0,0.00024,2]
[321797793,1712521841521,-1500.0,0.0002408,2]
[321797794,1712521841530,-202.54142992,0.00024084,2]
[321797795,1712521841539,-1030.67801868,0.000241,2]
[321797796,1712521841549,-2055.16,0.000241,2]
[321797797,1712521841558,-1717.61,0.000241,2]
[321797798,1712521841567,-162.19355873,0.00024141,2]
[321797799,1712521841576,-150.81098517,0.00024157,2]
[321797800,1712521841585,-162.19355873,0.00024181,2]
[321797801,1712521841594,-392.76537939,0.0002421,2]
[321797802,1712521841603,-162.19355873,0.00024228,2]
[321797803,1712521841612,-1203.30894451,0.0002425,2]
[321797804,1712521841622,-904.0,0.00024269,2]
[321797805,1712521841631,-166.7821729,0.00024298,2]
[321797806,1712521841641,-153.58020546,0.00024299,2]
[321797807,1712521841650,-1011.91685372,0.000243,2]
[321797808,1712521841659,-160.0,0.00024317,2]
[321797809,1712521841669,-3021.03,0.00024329,15]
[321797810,1712521841678,-2207.71309066,0.00024329,2]
[321797811,1712521841687,-155.0,0.00024329,2]
[321797812,1712521841697,-410.73,0.00024348,2]
[321797813,1712521841706,-198.29553207,0.00024368,2]
[321797814,1712521841715,-198.29553207,0.00024382,2]
[321797815,1712521841724,-377.39033057,0.00024389,2]
[321797816,1712521841733,-152.43151649,0.0002442,2]
[321797817,1712521841742,-162.19355873,0.00024444,2]
[321797818,1712521841751,-806.65731055,0.000245,2]
[321797819,1712521841761,-150.0,0.000245,2]
[321797820,1712521841771,-166.52535599,0.00024536,2]
[321797821,1712521841780,-5000.0,0.000246,3]
[321797822,1712521841789,-955.66642892,0.00024601,2]
[321797823,1712521841798,-955.66642892,0.00024602,2]
[321797824,1712521841807,-955.66642892,0.00024602,2]
[321797825,1712521841816,-13843.08920374,0.00024602,2]
[321797826,1712521841825,-594.35629821,0.00024604,2]
[321797827,1712521841835,-10644.86875767,0.00024605,2]
[321797828,1712521841843,-955.66642892,0.00024605,2]
[321797829,1712521841853,-10644.86875767,0.00024612,2]
[321797830,1712521841862,-10644.86875767,0.00024615,2]
[321797831,1712521841870,-10644.86875767,0.00024616,2]
[321797832,1712521841880,-193.8049854,0.00024616,2]
[321797833,1712521841889,-594.35629821,0.00024616,2]
[321797834,1712521841898,-85524.79004969,0.00024617,2]
[321797835,1712521841907,-85524.79004969,0.00024622,2]
[321797836,1712521841916,-193.8049854,0.00024622,2]
[321797837,1712521841924,-595.26313555,0.00024622,2]
[321797838,1712521841933,-15869.2389762,0.00024623,2]
[321797839,1712521841942,-13843.08920374,0.00024623,2]
[321797840,1712521841951,-193.8049854,0.00024624,2]
[321797841,1712521841961,-594.35629821,0.00024624,2]
[321797842,1712521841970,-13843.08920374,0.00024624,2]
[321797843,1712521841979,-85524.79004969,0.00024626,2]
[321797844,1712521841988,-594.35629821,0.00024626,2]
[321797845,1712521841997,-734.0,0.0002463,2]
[321797846,1712521842007,-13843.08920374,0.00024633,2]
[321797847,1712521842020,-85524.79004969,0.00024634,2]
[321797848,1712521842031,-193.8049854,0.00024635,2]